bitfinex/quotes_ETHUSD_20250905
["timestamp","ask_amount","ask_price","bid_price","bid_amount"]
[1757100611656,4.033,4335.7,4335.6,0.4731]
[1757100611854,4.033,4335.7,4335.6,0.7893]
[1757100612467,4.033,4335.7,4335.6,1.2759]
[1757100613068,0.1152,4335.6,4335.3,3.84899999]
[1757100613274,4.033,4335.5,4335.4,1.1738254]
[1757100613435,4.033,4335.5,4335.4,1.17382606]
[1757100613631,4.033,4335.5,4335.4,1.49002606]
[1757100615972,0.001,4335.8,4335.4,1.49002606]
[1757100615973,4.1452,4335.6,4335.4,1.49002606]
[1757100616275,0.001,4335.8,4335.7,2.30643264]
[1757100616460,0.001,4335.8,4335.7,2.5205587]
[1757100616783,0.001,4335.8,4335.7,3.7964587]
[1757100616945,0.001,4335.8,4335.7,4.52195847]
[1757100617366,0.001,4335.8,4335.7,7.88035846]
[1757100618402,0.001,4335.8,4335.7,7.27005869]
[1757100618700,0.001,4335.8,4335.7,11.30005869]
[1757100621697,0.001,4335.8,4335.7,7.9416587]
[1757100625803,0.001,4335.8,4335.7,4.72672606]
[1757100626106,0.001,4335.8,4335.7,7.8224587]
[1757100627597,0.001,4335.8,4335.7,11.18085869]
[1757100629292,0.001,4335.8,4335.7,10.70775869]
[1757100629492,0.001,4335.8,4335.7,11.18085869]
[1757100630468,0.001,4335.8,4335.7,10.39155869]
[1757100630703,0.001,4335.8,4335.7,11.18085869]
[1757100631074,0.001,4335.8,4335.7,0.21412606]
[1757100631275,0.001,4335.8,4335.6,0.004]
[1757100631276,2.42163264,4335.7,4335.6,0.004]
[1757100632806,0.1152,4335.7,4335.6,0.004]
[1757100639623,3.21363264,4335.7,4335.6,0.004]
[1757100640037,9.67745377,4335.7,4335.6,0.004]
[1757100640252,3.21363264,4335.7,4335.6,0.004]
[1757100640831,0.9072,4335.7,4335.6,0.004]
[1757100641132,3.21363264,4335.7,4335.6,0.004]
[1757100643047,9.67745377,4335.7,4335.6,0.004]
[1757100643250,3.21363264,4335.7,4335.6,0.004]
[1757100643429,9.71645377,4335.7,4335.6,0.004]
[1757100643747,9.67745377,4335.7,4335.6,0.004]
[1757100644448,13.69445377,4335.7,4335.6,0.004]
[1757100647549,7.23063264,4335.7,4335.6,0.004]
[1757100647854,7.22963264,4335.7,4335.6,0.004]
[1757100649658,3.21363264,4335.7,4335.6,0.004]
[1757100649853,7.22863264,4335.7,4335.6,0.004]
[1757100651090,3.21363264,4335.7,4335.6,0.004]
[1757100651231,7.22863264,4335.7,4335.6,0.004]
[1757100653971,13.69045377,4335.7,4335.6,0.004]
[1757100656673,7.22663264,4335.7,4335.6,0.004]
[1757100656832,13.69045377,4335.7,4335.6,0.004]
[1757100661888,16.69045377,4335.7,4335.6,0.004]
[1757100662040,3.09859224,4335.4,4335.2,0.004]
[1757100662243,12.67771978,4335.2,4335.1,0.004]
[1757100662439,12.67771978,4335.2,4335.1,1e-08]
[1757100662974,12.71671978,4335.2,4335.1,1e-08]
[1757100665758,19.02671343,4334.5,4334.4,0.004]
[1757100666055,23.03471343,4334.5,4334.4,0.004]
[1757100666263,6.2143244,4334.4,4334.3,1e-08]
[1757100666465,6.2143244,4334.4,4333.1,0.4662]
[1757100666466,0.792,4333.6,4332.9,0.004]
[1757100666646,9.56347793,4333.4,4332.9,0.004]
[1757100667266,12.67806457,4333.4,4332.9,0.004]
[1757100667452,3.09986983,4333.0,4332.9,1e-08]
[1757100667661,16.57069096,4333.0,4332.9,1e-08]
[1757100668078,16.60969096,4333.0,4332.9,1e-08]
[1757100668258,16.57069096,4333.0,4332.9,1e-08]
[1757100668877,16.60969096,4333.0,4332.9,1e-08]
[1757100669173,6.0999231,4332.9,4332.8,1e-08]
[1757100669375,3.10013618,4332.5,4331.9,0.004]
[1757100669582,16.57095731,4332.5,4331.9,0.004]
[1757100670774,12.56395731,4332.5,4331.9,0.004]
[1757100670981,16.57095731,4332.5,4332.0,0.4527]
[1757100671160,16.56995731,4332.5,4332.0,0.004]
[1757100672546,16.6625063,4332.5,4332.0,0.004]
[1757100672750,16.6625063,4332.5,4332.0,0.4527]
[1757100673562,16.6625063,4332.5,4332.4,1.2074]
[1757100673563,6.19268517,4332.5,4332.4,1.2074]
[1757100673776,12.6565063,4332.5,4332.4,1.2074]
[1757100673977,16.6625063,4332.5,4332.4,1.2074]
[1757100675277,16.6625063,4332.5,4332.4,0.004]
[1757100675483,17.82152611,4332.5,4332.4,0.004]
[1757100675683,13.81552611,4332.5,4332.4,0.004]
[1757100675883,17.82152611,4332.5,4332.4,0.004]
[1757100676907,17.82152611,4332.5,4332.4,1.2074]
[1757100677116,13.81552611,4332.5,4332.4,1.2074]
[1757100677621,17.82052611,4332.5,4332.4,1.2074]
[1757100677919,17.82052611,4332.5,4332.4,0.004]
[1757100678269,17.82052611,4332.5,4332.4,0.4527]
[1757100678470,17.82052611,4332.5,4332.4,1.2074]
[1757100679119,10.19768517,4332.5,4332.4,1.2074]
[1757100679273,6.19268517,4332.5,4332.4,1.2074]
[1757100679600,10.19768517,4332.5,4332.4,1.2074]
[1757100681067,10.19768517,4332.5,4332.4,0.4527]
[1757100681308,10.19768517,4332.5,4332.4,0.004]
[1757100681715,10.19768517,4332.5,4332.4,1.2074]
[1757100681919,10.19668517,4332.5,4332.4,1.2074]
[1757100682100,6.24600117,4332.4,4332.2,0.004]
[1757100682302,6.10024273,4332.3,4332.2,1e-08]
[1757100682599,6.10040258,4332.0,4331.9,1e-08]
[1757100682803,10.10340258,4332.0,4331.9,1e-08]
[1757100683010,6.10045587,4331.9,4331.8,1e-08]
[1757100683176,6.10045587,4331.9,4331.5,1e-08]
[1757100683177,3.10061575,4331.6,4331.5,1e-08]
[1757100683378,10.10361575,4331.6,4331.5,1e-08]
[1757100684022,6.79490992,4331.6,4331.5,1e-08]
[1757100684173,18.42075086,4331.6,4331.5,1e-08]
[1757100684579,18.45975086,4331.6,4331.5,1e-08]
[1757100684823,18.42075086,4331.6,4331.5,1e-08]
[1757100686581,18.45975086,4331.6,4331.5,1e-08]
[1757100687224,18.45975086,4331.6,4330.2,0.4518]
[1757100687225,0.792,4331.4,4330.2,0.4518]
[1757100687408,3.10130882,4330.3,4330.2,0.4518]
[1757100687724,11.80430882,4330.3,4330.2,0.4518]
[1757100687891,11.80430882,4330.3,4330.2,0.7547]
[1757100688100,11.80430882,4330.3,4330.2,1.2034]
[1757100688101,12.25610882,4330.3,4330.2,1.2034]
[1757100689193,12.25610882,4330.3,4330.2,0.7547]
[1757100689397,12.25610882,4330.3,4330.2,1.2034]
[1757100690205,11.80430882,4330.3,4330.2,1.2034]
[1757100691188,7.80230882,4330.3,4330.2,1.2034]
[1757100691508,11.80330882,4330.3,4330.2,1.2034]
[1757100692510,7.80230882,4330.3,4330.2,1.2034]
[1757100692706,11.80330882,4330.3,4330.2,1.2034]
[1757100693917,11.80230882,4330.3,4330.2,1.2034]
[1757100695624,3.10152215,4329.9,4329.8,0.025]
[1757100695788,17.72436309,4329.9,4329.8,0.025]
[1757100695993,10.10052215,4329.9,4329.8,1.2284]
[1757100696222,0.792,4329.4,4328.8,0.4768]
[1757100696418,0.792,4329.5,4329.3,0.3029]
[1757100696634,6.10200231,4329.0,4328.9,0.4487]
[1757100696834,6.10205567,4328.9,4328.8,0.025]
[1757100697014,13.72489661,4328.9,4328.8,0.025]
[1757100698114,6.10232252,4328.4,4328.3,0.4487]
[1757100698415,2.31021577,4328.6,4327.8,0.025]
[1757100698416,3.10258943,4327.9,4327.8,0.025]
[1757100698916,7.10158943,4327.9,4327.8,1.2284]
[1757100699114,0.792,4327.9,4327.8,1.2284]
[1757100699319,4.791,4327.9,4327.8,1.2284]
[1757100699731,0.792,4327.9,4327.8,1.2284]
[1757100699949,4.791,4327.9,4327.8,1.2284]
[1757100700128,0.792,4327.9,4327.8,1.2284]
[1757100700436,4.791,4327.9,4327.8,1.2284]
[1757100701014,3.999,4327.9,4327.8,1.2284]
[1757100702022,0.792,4328.4,4327.8,1.2284]
[1757100702227,0.792,4328.2,4327.9,0.9302]
[1757100702541,3.998,4328.1,4327.9,0.9302]
[1757100702740,3.998,4328.1,4328.0,1.2274]
[1757100703621,6.30848265,4328.1,4328.0,1.2274]
[1757100703956,2.31044362,4328.2,4328.0,1.2274]
[1757100704260,3.998,4328.1,4328.0,0.2972]
[1757100704735,3.998,4328.1,4328.0,1.2274]
[1757100708342,2.3104005,4328.3,4328.0,1.2274]
[1757100708647,2.31042451,4328.3,4328.0,0.2972]
[1757100708854,3.997,4328.2,4328.0,0.2972]
[1757100709145,6.30744108,4328.2,4328.1,0.9302]
[1757100709348,3.997,4328.2,4328.1,1.2274]
[1757100710339,6.30742927,4328.2,4328.1,1.2274]
[1757100711781,3.997,4328.2,4328.1,1.2274]
[1757100711956,6.30742927,4328.2,4328.1,1.2274]
[1757100712777,3.997,4328.2,4328.1,1.2274]
[1757100713147,6.30742927,4328.2,4328.1,1.2274]
[1757100713759,3.997,4328.2,4328.1,1.2274]
[1757100714252,2.31042927,4328.2,4328.1,1.2274]
[1757100714450,3.995,4328.2,4328.1,1.2274]
[1757100714751,7.09742927,4328.2,4328.1,1.2274]
[1757100716480,2.31005599,4328.9,4328.1,1.2274]
[1757100716677,3.995,4328.8,4328.1,1.2274]
[1757100716879,2.31042927,4328.2,4328.1,1.2274]
[1757100717180,6.30442927,4328.2,4328.1,1.2274]
[1757100717883,3.994,4328.2,4328.1,1.2274]
[1757100718175,6.30442927,4328.2,4328.1,1.2274]
[1757100719550,2.31057125,4328.0,4327.8,0.9552]
[1757100719751,3.993,4327.9,4327.8,0.025]
[1757100720172,3.993,4327.9,4327.8,0.3222]
[1757100720372,3.993,4327.9,4327.8,1.2524]
[1757100720965,2.31050335,4328.1,4327.8,1.2524]
[1757100721180,3.993,4328.0,4327.8,0.3222]
[1757100721384,3.993,4328.0,4327.9,0.9302]
[1757100721679,3.993,4328.0,4327.9,1.2274]
[1757100722085,2.31050042,4328.1,4327.9,1.2274]
[1757100722285,6.30253604,4328.0,4327.9,0.2972]
[1757100722690,3.992,4328.0,4327.9,0.2972]
[1757100722855,1.702,4329.1,4327.9,1.2274]
[1757100723055,0.1152,4328.1,4328.0,0.9302]
[1757100723254,0.1152,4328.1,4328.0,1.2274]
[1757100724359,1.702,4329.1,4328.0,1.2274]
[1757100724557,0.1152,4328.9,4328.4,3.0]
[1757100724756,0.1152,4328.9,4328.8,2.60730903]
[1757100724993,0.1152,4328.9,4328.8,6.10730903]
[1757100725162,0.1152,4328.9,4328.8,7.03750903]
[1757100725490,0.1152,4328.9,4328.8,10.03750903]
[1757100725690,0.1152,4328.9,4328.8,7.03750903]
[1757100725986,0.025,4329.8,4328.8,5.69217248]
[1757100726198,0.1152,4329.3,4329.2,2.30987371]
[1757100726399,0.1152,4329.3,4329.2,2.60707371]
[1757100726564,0.1152,4329.3,4329.2,3.53727371]
[1757100727205,0.1152,4329.3,4329.2,1.2274]
[1757100727686,0.1152,4329.3,4329.2,3.53729559]
[1757100727992,0.1152,4329.3,4329.0,2.31000042]
[1757100727993,4.1052,4329.3,4328.8,3.9865]
[1757100728160,3.99,4329.3,4329.2,0.2972]
[1757100728363,3.99,4329.3,4329.2,1.2274]
[1757100729597,3.99,4329.3,4329.2,0.4437]
[1757100729794,0.1152,4329.2,4328.9,0.4336]
[1757100729967,0.1152,4329.2,4329.0,0.9134]
[1757100730167,0.1152,4329.2,4329.1,0.285]
[1757100730597,0.1152,4329.2,4329.1,1.1984]
[1757100733591,0.1152,4329.2,4329.1,4.6984]
[1757100734512,2.42509559,4329.2,4329.1,3.9798]
[1757100734685,0.1152,4329.2,4328.6,0.9134]
[1757100734885,3.99,4329.3,4328.6,3.22360476]
[1757100734886,0.1152,4328.7,4328.6,3.22360476]
[1757100735082,0.1152,4328.7,4328.6,7.00860476]
[1757100735788,3.987,4329.0,4328.6,12.51275828]
[1757100735983,4.1022,4329.0,4328.9,2.31005567]
[1757100736189,0.1152,4329.0,4328.8,2.31008521]
[1757100736412,0.1152,4329.0,4328.9,1.1984]
[1757100738824,2.31022712,4328.6,4328.1,0.4798]
[1757100739010,3.985,4328.5,4328.2,0.4336]
[1757100739322,3.985,4328.4,4328.3,0.9134]
[1757100739526,3.985,4328.4,4328.3,1.1984]
[1757100740032,0.1152,4328.3,4327.8,0.5088]
[1757100740320,2.3103776,4328.3,4327.9,0.4336]
[1757100740506,3.985,4328.4,4328.0,0.9134]
[1757100740712,3.985,4328.4,4328.1,0.9134]
[1757100740907,6.29536143,4328.4,4328.1,0.9134]
[1757100741134,6.29536143,4328.4,4327.8,0.029]
[1757100741135,2.31058943,4327.9,4327.8,0.029]
[1757100741331,6.29558943,4327.9,4327.8,0.029]
[1757100741536,3.985,4327.9,4327.8,0.029]
[1757100741832,6.29558943,4327.9,4327.8,0.029]
[1757100742656,18.31235532,4327.9,4327.8,0.029]
[1757100744247,24.79612121,4327.9,4327.8,0.029]
[1757100744746,14.32735532,4327.9,4327.8,0.029]
[1757100744899,18.31135532,4327.9,4327.8,0.029]
[1757100745105,24.79512121,4327.9,4327.8,0.029]
[1757100745302,6.10301661,4327.1,4327.0,0.004]
[1757100745527,16.5707825,4327.1,4327.0,0.004]
[1757100746716,16.69385614,4327.1,4327.0,0.004]
[1757100747742,16.69385614,4327.1,4327.0,1e-08]
[1757100747743,16.73285614,4327.1,4327.0,1e-08]
[1757100748507,16.73285614,4327.1,4325.8,0.025]
[1757100748508,0.792,4326.7,4325.8,0.025]
[1757100748819,2.31117685,4326.8,4325.8,0.025]
[1757100748820,12.58742357,4325.9,4325.8,0.025]
[1757100749025,16.57042357,4325.9,4325.8,0.025]
[1757100749225,16.69465198,4325.9,4325.8,0.025]
[1757100749834,12.71165198,4325.9,4325.8,0.025]
[1757100750034,12.71165198,4325.9,4325.8,0.7436]
[1757100750035,16.69465198,4325.9,4325.8,0.7436]
[1757100750262,12.71165198,4325.9,4325.8,0.025]
[1757100750566,16.69465198,4325.9,4325.8,0.025]
[1757100750743,0.12422841,4325.9,4325.8,1.2234]
[1757100751122,4.10722841,4325.9,4325.8,1.2234]
[1757100752158,0.12422841,4325.9,4325.8,3.53511112]
[1757100752358,4.10722841,4325.9,4325.8,3.53511112]
[1757100752573,4.22242841,4325.9,4325.8,1.2234]
[1757100752739,4.22242841,4325.9,4325.8,3.53511112]
[1757100753630,4.22242841,4325.9,4325.8,4.11979992]
[1757100754433,4.10622841,4325.9,4325.8,4.11979992]
[1757100754764,0.12422841,4325.9,4325.8,4.11979992]
[1757100755459,0.12422841,4325.9,4325.8,1.8080888]
[1757100755759,0.12422841,4325.9,4325.8,4.7234]
[1757100755962,2.43588609,4325.9,4325.8,3.81]
[1757100756169,5.43588609,4325.9,4325.8,0.025]
[1757100756547,6.22788609,4325.9,4325.8,0.025]
[1757100758335,10.20888609,4325.9,4325.8,0.025]
[1757100761037,6.22788609,4325.9,4325.8,0.025]
[1757100761238,10.20888609,4325.9,4325.8,0.025]
[1757100762565,6.41688609,4325.9,4325.8,0.7976]
[1757100762772,6.41688609,4325.9,4325.8,1.2513]
[1757100763286,6.41688609,4325.9,4325.8,0.025]
[1757100763735,6.41688609,4325.9,4325.8,0.3339]
[1757100763944,6.41688609,4325.9,4325.8,1.2513]
[1757100764780,4.10422841,4325.9,4325.8,1.2513]
[1757100765175,0.12422841,4325.9,4325.8,1.2513]
[1757100765448,4.10422841,4325.9,4325.8,1.37643]
[1757100765679,4.10422841,4325.9,4325.8,1.2513]
[1757100767272,0.12422841,4325.9,4325.8,1.2513]
[1757100767497,4.10422841,4325.9,4325.8,1.2513]
[1757100767783,0.12422841,4325.9,4325.8,3.56301112]
[1757100767963,4.10322841,4325.9,4325.8,3.56301112]
[1757100768159,4.10322841,4325.9,4325.8,1.85030129]
[1757100768479,0.12422841,4325.9,4325.8,1.2553]
[1757100768689,0.12422841,4325.9,4325.8,0.8016]
[1757100768847,2.43588609,4325.9,4325.8,0.8016]
[1757100769182,2.43588609,4325.9,4325.8,1.2553]
[1757100769491,6.41488609,4325.9,4325.8,1.2553]
[1757100771190,6.41488609,4325.9,4325.8,0.029]
[1757100771888,6.41488609,4325.9,4325.8,0.4927]
[1757100772785,6.41488609,4325.9,4325.8,0.029]
[1757100773758,6.41488609,4325.9,4325.8,0.8016]
[1757100773956,6.41488609,4325.9,4325.8,1.2553]
[1757100774162,4.10222841,4325.9,4325.8,1.2553]
[1757100774590,6.41388609,4325.9,4325.8,1.2553]
[1757100774992,6.41388609,4325.9,4325.8,0.8016]
[1757100775295,6.41388609,4325.9,4325.8,1.2553]
[1757100775658,2.43588609,4325.9,4325.8,1.2553]
[1757100775858,6.41288609,4325.9,4325.8,1.2553]
[1757100776099,0.12422841,4325.9,4325.8,3.56701112]
[1757100776270,0.12422841,4325.9,4325.8,1.2553]
[1757100776271,4.10122841,4325.9,4325.8,1.2553]
[1757100776598,4.10122841,4325.9,4325.8,3.56701112]
[1757100777165,4.10122841,4325.9,4325.8,1.2553]
[1757100778883,4.10122841,4325.9,4325.8,3.56701112]
[1757100779263,4.10122841,4325.9,4325.8,1.2553]
[1757100780293,0.12422841,4325.9,4325.8,10.41619913]
[1757100780498,4.10022841,4325.9,4325.8,1.61201624]
[1757100780866,4.10022841,4325.9,4325.8,7.06701112]
[1757100781067,0.12422841,4325.9,4325.8,7.06701112]
[1757100782999,0.12422841,4325.9,4325.8,4.7553]
[1757100783587,0.12422841,4325.9,4325.8,3.529]
[1757100784005,2.43588609,4325.9,4325.8,0.029]
[1757100787094,6.40988609,4325.9,4325.8,0.029]
[1757100787296,7.20188609,4325.9,4325.8,0.029]
[1757100789387,10.24088609,4325.9,4325.8,0.029]
[1757100789623,10.20188609,4325.9,4325.8,0.029]
[1757100790521,10.24088609,4325.9,4325.8,0.029]
[1757100790884,10.20188609,4325.9,4325.8,0.029]
[1757100793823,9.40888609,4325.9,4325.8,0.3355]
[1757100794021,5.43588609,4325.9,4325.8,0.7635]
[1757100794322,6.40888609,4325.9,4325.8,1.2356]
[1757100795023,2.43588609,4325.9,4325.8,1.2356]
[1757100795223,6.40888609,4325.9,4325.8,1.2356]
[1757100796213,7.20088609,4325.9,4325.8,0.029]
[1757100796413,7.20088609,4325.9,4325.8,0.7635]
[1757100796609,7.20088609,4325.9,4325.8,1.2356]
[1757100797833,7.20088609,4325.9,4325.8,0.7635]
[1757100798630,7.20088609,4325.9,4325.8,1.2356]
[1757100799524,2.43588609,4325.9,4325.8,1.2356]
[1757100799822,7.19988609,4325.9,4325.8,0.029]
[1757100800021,10.19988609,4325.9,4325.8,0.029]
[1757100800728,6.22788609,4325.9,4325.8,0.029]
[1757100800894,10.19888609,4325.9,4325.8,0.029]
[1757100805209,10.19788609,4325.9,4325.8,0.029]
[1757100807443,17.84367578,4325.9,4325.8,0.029]
[1757100810426,17.88267578,4325.9,4325.8,1e-08]
[1757100811112,0.792,4325.7,4324.9,0.004]
[1757100811313,13.74992841,4325.0,4324.9,0.004]
[1757100811611,19.42292841,4325.0,4324.9,0.004]
[1757100812339,15.45392841,4325.0,4324.9,0.004]
[1757100812655,19.42292841,4325.0,4324.9,0.004]
[1757100813228,0.792,4324.9,4323.3,0.428]
[1757100813541,0.792,4324.9,4323.5,0.428]
[1757100813542,3.10472693,4323.9,4323.5,0.428]
[1757100813740,10.07372693,4323.9,4323.5,0.428]
[1757100813924,10.07372693,4323.9,4323.4,0.4721]
[1757100815909,10.07372693,4323.9,4323.3,0.428]
[1757100816439,10.07372693,4323.9,4323.8,1e-08]
[1757100817250,6.10472693,4323.9,4323.8,1e-08]
[1757100817416,10.07272693,4323.9,4323.8,1e-08]
[1757100817619,6.10472693,4323.9,4323.8,1e-08]
[1757100817837,10.07272693,4323.9,4323.8,1e-08]
[1757100818344,10.24402777,4323.9,4323.8,1e-08]
[1757100820328,10.28302777,4323.9,4323.8,1e-08]
[1757100820538,22.44746677,4323.9,4323.8,1e-08]
[1757100820739,0.792,4323.2,4322.8,1e-08]
[1757100820956,1.704,4323.1,4322.8,1e-08]
[1757100821122,6.28121308,4323.0,4322.8,1e-08]
[1757100821322,2.31326193,4322.9,4322.8,1e-08]
[1757100821539,3.0,4323.5,4322.8,1e-08]
[1757100821540,0.69550299,4324.6,4322.8,2.31330017]
[1757100821829,3.0,4324.4,4322.9,0.54273002]
[1757100822017,0.773,4324.3,4323.2,2.31308494]
[1757100822221,3.08552929,4324.3,4324.2,0.3114]
[1757100822418,3.08552929,4324.3,4324.2,1.2188]
[1757100822856,3.87752929,4324.3,4324.2,1.2188]
[1757100823064,3.08552929,4324.3,4324.2,1.2188]
[1757100824677,6.28052929,4324.3,4324.2,1.2188]
[1757100825584,2.31278042,4323.8,4323.7,0.4321]
[1757100825879,6.28078042,4323.8,4323.7,0.4321]
[1757100826081,6.28078042,4323.8,4323.7,0.7435]
[1757100826267,6.28078042,4323.8,4323.7,1.2188]
[1757100826435,6.28078042,4323.8,4323.7,0.7867]
[1757100826858,6.28078042,4323.8,4323.7,1.2188]
[1757100828273,3.968,4323.8,4323.7,1.2188]
[1757100828865,6.28078042,4323.8,4323.7,1.2188]
[1757100830373,2.31278042,4323.8,4323.7,1.2188]
[1757100830562,6.28078042,4323.8,4323.7,1.2188]
[1757100832175,3.817,4324.8,4323.7,1.2188]
[1757100832347,2.31241791,4324.5,4323.7,0.3114]
[1757100832552,2.31272816,4323.9,4323.8,0.9074]
[1757100832747,2.31272816,4323.9,4323.8,1.2188]
[1757100832748,6.28072693,4323.9,4323.8,1.2188]
[1757100834979,6.39592693,4323.9,4323.8,1.2188]
[1757100835205,2.42792693,4323.9,4323.8,1.2188]
[1757100835484,6.39592693,4323.9,4323.8,1.2188]
[1757100836880,6.39592693,4323.9,4323.8,0.7867]
[1757100837054,6.39592693,4323.9,4323.8,1.2188]
[1757100837598,2.3129944,4323.4,4323.3,0.4793]
[1757100837797,6.2799944,4323.4,4323.3,0.4793]
[1757100837965,6.2799944,4323.4,4323.3,0.7907]
[1757100838579,6.2799944,4323.4,4323.3,1.2228]
[1757100838781,3.967,4323.4,4323.3,1.2228]
[1757100840287,2.312513,4324.3,4323.3,1.92679472]
[1757100840593,0.001,4323.9,4323.4,0.9074]
[1757100840784,0.001,4323.9,4323.3,0.3154]
[1757100840785,0.001,4323.9,4323.8,0.3114]
[1757100841094,0.001,4323.9,4323.8,2.62418042]
[1757100841283,0.001,4323.9,4323.8,3.53158042]
[1757100841895,0.001,4323.9,4323.8,10.03158042]
[1757100842098,0.001,4324.4,4323.9,3.0]
[1757100842405,0.001,4324.4,4324.3,2.312513]
[1757100842608,0.001,4324.4,4324.3,9.61403813]
[1757100842905,0.001,4324.4,4324.3,10.498313]
[1757100844486,0.001,4324.4,4324.3,13.998313]
[1757100844677,0.001,4324.4,4324.3,16.03106926]
[1757100845478,0.001,4324.4,4324.3,12.06406926]
[1757100845680,0.001,4324.4,4324.3,16.03006926]
[1757100846404,0.001,4324.4,4324.3,7.031313]
[1757100846717,0.001,4324.4,4324.3,10.031313]
[1757100847071,0.001,4324.4,4324.3,7.031313]
[1757100847402,0.001,4324.4,4324.3,10.031313]
[1757100848770,0.001,4324.4,4324.3,13.997313]
[1757100848992,0.001,4324.4,4324.3,15.63982506]
[1757100851902,0.001,4324.4,4324.3,11.67382506]
[1757100852102,0.001,4324.4,4324.3,15.63982506]
[1757100852986,0.001,4324.4,4324.3,11.67382506]
[1757100853183,0.001,4324.4,4324.3,15.63882506]
[1757100860681,0.026,4324.8,4324.7,2.31229911]
[1757100860983,0.12112129,4325.1,4325.0,2.31213872]
[1757100861184,0.12112129,4325.1,4325.0,6.7113601]
[1757100861384,0.12112129,4325.1,4325.0,11.08863872]
[1757100861786,0.001,4325.3,4325.2,2.31203181]
[1757100862014,0.001,4325.3,4325.2,11.23921917]
[1757100862200,0.001,4325.3,4325.2,12.41339886]
[1757100862603,0.001,4325.3,4325.2,12.50603595]
[1757100863594,0.001,4325.3,4325.2,19.36443594]
[1757100865122,0.001,4325.3,4325.2,20.15643594]
[1757100865622,0.001,4325.3,4325.2,34.10442063]
[1757100865811,0.026,4325.8,4325.7,3.10376456]
[1757100866012,1e-08,4325.8,4325.7,12.33444156]
[1757100866321,1e-08,4325.8,4325.7,13.62382392]
[1757100866502,1e-08,4325.8,4325.7,17.21644106]
[1757100871719,0.026,4326.8,4326.5,2.3113371]
[1757100872063,0.4797,4326.8,4326.7,2.42643026]
[1757100872405,0.5997,4326.8,4326.7,8.92643026]
[1757100873049,0.146,4326.8,4326.7,9.29100089]
[1757100873416,0.146,4326.8,4326.7,15.77864946]
[1757100874447,0.026,4326.8,4326.7,15.77864946]
[1757100874833,0.3168,4326.8,4326.7,15.77864946]
[1757100875034,0.3168,4326.8,4326.7,13.25200089]
[1757100875339,0.598,4326.8,4326.7,13.25200089]
[1757100875505,0.3168,4326.8,4326.7,13.25200089]
[1757100875707,0.3168,4326.8,4326.7,9.29100089]
[1757100875908,0.3168,4326.8,4326.7,13.25200089]
[1757100876851,0.3168,4326.8,4326.7,16.60940087]
[1757100877051,0.598,4326.8,4326.7,12.28383024]
[1757100877267,0.598,4326.8,4326.7,16.24483024]
[1757100878052,0.3168,4326.8,4326.7,16.24483024]
[1757100879438,0.026,4326.8,4326.7,16.24483024]
[1757100879806,0.3167,4326.8,4326.7,16.24483024]
[1757100881834,0.026,4326.8,4326.7,16.97753024]
[1757100882014,0.026,4326.8,4326.7,18.18472685]
[1757100882216,0.026,4326.8,4326.7,16.97932685]
[1757100883410,0.026,4326.8,4326.7,18.18472685]
[1757100884022,0.026,4326.8,4326.7,17.75172685]
[1757100884429,0.026,4326.8,4326.7,18.18472685]
[1757100885169,0.026,4326.8,4326.7,16.97932685]
[1757100885370,0.1331,4326.8,4326.7,16.97932685]
[1757100885941,0.1331,4326.8,4326.7,16.97832685]
[1757100886146,0.026,4326.8,4326.7,16.97832685]
[1757100886348,0.026,4326.8,4326.7,17.75072685]
[1757100886553,0.026,4326.8,4326.7,18.18372685]
[1757100888737,0.001,4327.3,4327.2,2.3109632]
[1757100889079,0.001,4327.3,4327.2,9.60136318]
[1757100889378,0.5712,4327.3,4327.2,13.10136318]
[1757100889581,0.5712,4327.3,4327.2,9.14236318]
[1757100889783,0.1081,4327.3,4327.2,6.83139998]
[1757100889954,0.001,4327.3,4327.2,20.28367175]
[1757100890280,0.1081,4327.3,4327.2,19.58901175]
[1757100890574,0.1081,4327.3,4327.2,13.10136318]
[1757100891541,0.001,4327.3,4327.2,13.57406318]
[1757100891748,0.001,4327.3,4327.2,20.36141175]
[1757100892043,0.001,4327.3,4327.2,20.06171175]
[1757100892244,0.1081,4327.3,4327.2,19.58901175]
[1757100892855,0.1081,4327.3,4327.2,13.10136318]
[1757100895292,0.1081,4327.3,4327.2,6.83139998]
[1757100895582,0.1081,4327.3,4327.2,10.78939998]
[1757100895774,0.1081,4327.3,4327.2,13.10036318]
[1757100896171,0.1081,4327.3,4327.2,10.78939998]
[1757100896882,0.1081,4327.3,4327.2,13.10036318]
[1757100897878,0.001,4327.3,4327.2,13.40006318]
[1757100898079,0.001,4327.3,4327.2,13.87276318]
[1757100898385,0.1081,4327.3,4327.2,13.10036318]
[1757100899168,0.1081,4327.3,4327.2,9.14236318]
[1757100899370,0.1081,4327.3,4327.2,13.10036318]
[1757100900989,0.001,4327.3,4327.2,16.38671175]
[1757100901163,0.001,4327.3,4327.2,16.85941175]
[1757100901488,0.001,4327.3,4327.2,18.0879942]
[1757100901801,0.001,4327.3,4327.2,13.89494563]
[1757100901802,0.1081,4327.3,4327.2,13.89494563]
[1757100901958,0.1081,4327.3,4327.2,13.09936318]
[1757100903158,0.001,4327.3,4327.2,13.09936318]
[1757100903783,0.1081,4327.3,4327.2,13.09936318]
[1757100904390,0.001,4327.3,4327.2,13.09936318]
[1757100905259,0.1081,4327.3,4327.2,13.09936318]
[1757100905694,0.001,4327.3,4327.2,13.09936318]
[1757100905862,0.001,4327.3,4327.2,13.09836318]
[1757100906495,0.001,4327.3,4327.2,10.9723632]
[1757100906906,0.001,4327.3,4327.2,14.30376318]
[1757100909311,0.1081,4327.3,4327.2,13.09836318]
[1757100910665,0.1081,4327.3,4327.2,9.14236318]